[Event "*** Titled Tuesday Blitz"]
[Site "Chess.com"]
[Date "2020.05.19"]
[Round "3"]
[White "Khamrakulov_Djurabek"]
[Black "almaguerjm"]
[Result "1-0"]
[WhiteElo "2793"]
[BlackElo "2338"]
[TimeControl "180+1"]
[EndTime "12:26:25 PDT"]
[Termination "Khamrakulov_Djurabek won by resignation"]

1. e4 {[%clk 0:03:00.9]} 1... e5 {[%clk 0:02:59.3]} 2. Nf3 {[%clk 0:03:00.7]}
2... Nc6 {[%clk 0:02:50.3]} 3. d4 {[%clk 0:03:00.2]} 3... exd4 {[%clk 0:02:48]}
4. Nxd4 {[%clk 0:03:00.1]} 4... Nf6 {[%clk 0:02:47.4]} 5. Nc3 {[%clk 0:02:59]}
5... Bb4 {[%clk 0:02:46.8]} 6. Nxc6 {[%clk 0:02:59]} 6... bxc6 {[%clk
0:02:46.1]} 7. Bd3 {[%clk 0:02:59.5]} 7... d5 {[%clk 0:02:41.9]} 8. exd5 {[%clk
0:02:59.3]} 8... Bg4 {[%clk 0:02:39.4]} 9. Be2 {[%clk 0:02:57]} 9... Bxc3+
{[%clk 0:02:26.3]} 10. bxc3 {[%clk 0:02:56.6]} 10... Bxe2 {[%clk 0:02:06.9]} 11.
Qxe2+ {[%clk 0:02:56.2]} 11... Kf8 {[%clk 0:02:04.1]} 12. Ba3+ {[%clk
0:02:54.4]} 12... Kg8 {[%clk 0:02:04.1]} 13. dxc6 {[%clk 0:02:54.4]} 13... Qd5
{[%clk 0:01:59.1]} 14. O-O {[%clk 0:02:53.4]} 14... Qxc6 {[%clk 0:01:57.4]} 15.
c4 {[%clk 0:02:44.6]} 15... h5 {[%clk 0:01:54.4]} 16. Rfe1 {[%clk 0:02:34.4]}
16... Rh6 {[%clk 0:01:51]} 17. Rad1 {[%clk 0:02:32.3]} 17... Rg6 {[%clk
0:01:50.2]} 18. f3 {[%clk 0:02:32.4]} 18... h4 {[%clk 0:01:40.4]} 19. h3 {[%clk
0:02:27.5]} 19... Nh5 {[%clk 0:01:38.1]} 20. Qe4 {[%clk 0:02:24.8]} 20... Re6
{[%clk 0:01:20.3]} 21. Qxh4 {[%clk 0:02:17.9]} 21... Rxe1+ {[%clk 0:01:06.3]}
22. Rxe1 {[%clk 0:02:17.7]} 22... g6 {[%clk 0:01:06.6]} 23. Qd4 {[%clk
0:02:13.1]} 23... Re8 {[%clk 0:00:51.2]} 24. Rxe8+ {[%clk 0:01:55.7]} 24... Qxe8
{[%clk 0:00:52.1]} 25. Kf2 {[%clk 0:01:54.9]} 25... a6 {[%clk 0:00:41.7]} 26.
Bb2 {[%clk 0:01:53.2]} 26... f6 {[%clk 0:00:42.1]} 27. g4 {[%clk 0:01:53]} 1-0

[Event "*** Titled Tuesday Blitz"]
[Site "Chess.com"]
[Date "2020.05.19"]
[Round "3"]
[White "Baby_Shak"]
[Black "TheoSlade"]
[Result "1-0"]
[WhiteElo "2593"]
[BlackElo "2393"]
[TimeControl "180+1"]
[EndTime "12:26:26 PDT"]
[Termination "Baby_Shak won by resignation"]

1. d4 {[%clk 0:03:00.9]} 1... Nf6 {[%clk 0:03:00]} 2. Bf4 {[%clk 0:03:01]} 2...
d5 {[%clk 0:03:00]} 3. Nd2 {[%clk 0:03:01.1]} 3... c5 {[%clk 0:02:59.9]} 4. e3
{[%clk 0:03:01]} 4... Nc6 {[%clk 0:03:00.4]} 5. Ngf3 {[%clk 0:03:00.8]} 5... Qb6
{[%clk 0:02:58.7]} 6. dxc5 {[%clk 0:03:00.8]} 6... Qxb2 {[%clk 0:02:59.3]} 7.
Rb1 {[%clk 0:03:00.4]} 7... Qa3 {[%clk 0:02:58]} 8. Bb5 {[%clk 0:03:00.5]} 8...
e6 {[%clk 0:02:53.1]} 9. O-O {[%clk 0:03:00.1]} 9... Bxc5 {[%clk 0:02:48.2]} 10.
Ne5 {[%clk 0:02:56.2]} 10... Bd7 {[%clk 0:02:43.3]} 11. Ndc4 {[%clk 0:02:44.2]}
11... dxc4 {[%clk 0:02:15.9]} 12. Nxc4 {[%clk 0:02:45.1]} 12... Qxa2 {[%clk
0:02:03.5]} 13. Ra1 {[%clk 0:02:43.9]} 13... Qxa1 {[%clk 0:02:00.3]} 14. Qxa1
{[%clk 0:02:42.3]} 14... O-O {[%clk 0:02:00.6]} 15. Rd1 {[%clk 0:02:23.5]} 15...
Rfd8 {[%clk 0:01:58.8]} 16. Bc7 {[%clk 0:02:22.6]} 16... Rdc8 {[%clk 0:01:54.9]}
17. Bd6 {[%clk 0:02:15.6]} 17... Bxd6 {[%clk 0:01:54]} 18. Nxd6 {[%clk
0:02:15.2]} 18... Rc7 {[%clk 0:01:54.5]} 19. e4 {[%clk 0:01:58.9]} 19... Ne7
{[%clk 0:01:11.1]} 20. Bxd7 {[%clk 0:01:54.5]} 20... Rxd7 {[%clk 0:01:09]} 21.
e5 {[%clk 0:01:53.4]} 21... Nfd5 {[%clk 0:01:06.5]} 22. c4 {[%clk 0:01:53.1]}
22... Nb6 {[%clk 0:01:03.6]} 23. Rb1 {[%clk 0:01:50.5]} 23... Rc7 {[%clk
0:00:58]} 24. Rxb6 {[%clk 0:01:48.8]} 24... Nc6 {[%clk 0:00:50.2]} 25. Rxb7
{[%clk 0:01:47.3]} 25... Rxb7 {[%clk 0:00:48.4]} 26. Nxb7 {[%clk 0:01:48.2]}
26... Nxe5 {[%clk 0:00:48.8]} 27. Qxe5 {[%clk 0:01:46.9]} 27... a5 {[%clk
0:00:40]} 28. Nxa5 {[%clk 0:01:46]} 28... Rd8 {[%clk 0:00:40.5]} 29. h3 {[%clk
0:01:45.3]} 1-0

[Event "*** Titled Tuesday Blitz"]
[Site "Chess.com"]
[Date "2020.05.19"]
[Round "3"]
[White "Sebastian"]
[Black "IIIlllII1llIl"]
[Result "1-0"]
[WhiteElo "2912"]
[BlackElo "2631"]
[TimeControl "180+1"]
[EndTime "12:26:28 PDT"]
[Termination "Sebastian won by resignation"]

1. e4 {[%clk 0:03:00.9]} 1... e5 {[%clk 0:03:00]} 2. Nf3 {[%clk 0:03:00.8]} 2...
Nc6 {[%clk 0:03:00.3]} 3. Bb5 {[%clk 0:03:00.8]} 3... Nf6 {[%clk 0:03:00.6]} 4.
d3 {[%clk 0:03:00]} 4... d6 {[%clk 0:03:00.5]} 5. O-O {[%clk 0:02:59.2]} 5...
Bd7 {[%clk 0:03:00.3]} 6. Re1 {[%clk 0:02:59.7]} 6... a6 {[%clk 0:02:53.9]} 7.
Bxc6 {[%clk 0:02:58.6]} 7... Bxc6 {[%clk 0:02:48]} 8. c4 {[%clk 0:02:58.6]} 8...
Be7 {[%clk 0:02:18.7]} 9. Nc3 {[%clk 0:02:57.8]} 9... b5 {[%clk 0:02:16.8]} 10.
d4 {[%clk 0:02:45.4]} 10... bxc4 {[%clk 0:01:52]} 11. dxe5 {[%clk 0:02:43.7]}
11... dxe5 {[%clk 0:01:51.9]} 12. Qxd8+ {[%clk 0:02:39.9]} 12... Rxd8 {[%clk
0:01:38.8]} 13. Nxe5 {[%clk 0:02:40.8]} 13... Bxe4 {[%clk 0:01:33.1]} 14. Nxe4
{[%clk 0:02:04]} 14... Nxe4 {[%clk 0:01:30.7]} 15. Nc6 {[%clk 0:02:02.7]} 15...
Rd7 {[%clk 0:01:00.7]} 16. Bf4 {[%clk 0:02:02]} 16... f5 {[%clk 0:00:43.4]} 17.
Rac1 {[%clk 0:01:49.2]} 17... O-O {[%clk 0:00:19.7]} 18. Nxe7+ {[%clk 0:01:43]}
18... Rxe7 {[%clk 0:00:19.3]} 19. f3 {[%clk 0:01:43.3]} 19... g5 {[%clk
0:00:14.9]} 20. Bxg5 {[%clk 0:01:37.6]} 1-0

[Event "*** Titled Tuesday Blitz"]
[Site "Chess.com"]
[Date "2020.05.19"]
[Round "3"]
[White "fodorpoti"]
[Black "1g41-0"]
[Result "1-0"]
[WhiteElo "2769"]
[BlackElo "2517"]
[TimeControl "180+1"]
[EndTime "12:26:29 PDT"]
[Termination "fodorpoti won by resignation"]

1. d4 {[%clk 0:03:00.9]} 1... d5 {[%clk 0:02:57.7]} 2. c4 {[%clk 0:03:00.2]}
2... c6 {[%clk 0:02:58.2]} 3. Nc3 {[%clk 0:02:59.4]} 3... Nf6 {[%clk 0:02:58.6]}
4. cxd5 {[%clk 0:02:59.9]} 4... cxd5 {[%clk 0:02:59.5]} 5. Bf4 {[%clk
0:03:00.2]} 5... Nc6 {[%clk 0:02:59.5]} 6. e3 {[%clk 0:03:00.1]} 6... Bf5 {[%clk
0:02:55.5]} 7. Qb3 {[%clk 0:02:59.9]} 7... Na5 {[%clk 0:02:50.4]} 8. Qa4+ {[%clk
0:02:59.8]} 8... Bd7 {[%clk 0:02:50.2]} 9. Qc2 {[%clk 0:02:59.9]} 9... Rc8
{[%clk 0:02:48.1]} 10. Bd3 {[%clk 0:02:52.3]} 10... e6 {[%clk 0:02:46.5]} 11.
Nf3 {[%clk 0:02:51.9]} 11... Bb4 {[%clk 0:02:39.1]} 12. O-O {[%clk 0:02:51]}
12... O-O {[%clk 0:02:38.5]} 13. Ne5 {[%clk 0:02:47.7]} 13... Be8 {[%clk
0:02:23.4]} 14. Rac1 {[%clk 0:02:41.7]} 14... h6 {[%clk 0:02:21.4]} 15. Qe2
{[%clk 0:02:30.6]} 15... a6 {[%clk 0:02:16.9]} 16. Qf3 {[%clk 0:02:16]} 16...
Nc6 {[%clk 0:02:13.3]} 17. Ne2 {[%clk 0:02:09.1]} 17... Nxe5 {[%clk 0:02:12.5]}
18. Bxe5 {[%clk 0:02:09]} 18... Rxc1 {[%clk 0:02:10.8]} 19. Rxc1 {[%clk
0:02:08.4]} 19... Bd6 {[%clk 0:02:11.4]} 20. Qg3 {[%clk 0:02:00.6]} 20... Bxe5
{[%clk 0:02:01]} 21. dxe5 {[%clk 0:02:01.5]} 21... Nd7 {[%clk 0:01:57.3]} 22.
Nd4 {[%clk 0:02:01.4]} 22... Qb6 {[%clk 0:01:36.5]} 23. b3 {[%clk 0:01:58]}
23... Nc5 {[%clk 0:01:34.3]} 24. Bb1 {[%clk 0:01:57]} 24... Bb5 {[%clk
0:01:31.2]} 25. f4 {[%clk 0:01:48.1]} 25... Bd3 {[%clk 0:01:30.2]} 26. f5 {[%clk
0:01:25.8]} 26... Bxb1 {[%clk 0:01:22.3]} 27. Rxb1 {[%clk 0:01:24.8]} 27... Ne4
{[%clk 0:01:22.3]} 28. Qg4 {[%clk 0:01:22.6]} 28... exf5 {[%clk 0:01:16.2]} 29.
Nxf5 {[%clk 0:01:22.8]} 29... g6 {[%clk 0:01:12]} 30. Ne7+ {[%clk 0:01:22.7]}
30... Kg7 {[%clk 0:01:11.4]} 31. Nxd5 {[%clk 0:01:22.8]} 31... f5 {[%clk
0:01:01.2]} 32. Qxe4 {[%clk 0:01:17.1]} 32... fxe4 {[%clk 0:01:02.1]} 33. Nxb6
{[%clk 0:01:17]} 1-0

[Event "*** Titled Tuesday Blitz"]
[Site "Chess.com"]
[Date "2020.05.19"]
[Round "3"]
[White "Ranindu2003"]
[Black "WonderChampion"]
[Result "1-0"]
[WhiteElo "2463"]
[BlackElo "1933"]
[TimeControl "180+1"]
[EndTime "12:26:33 PDT"]
[Termination "Ranindu2003 won by resignation"]

1. e4 {[%clk 0:03:00.4]} 1... c5 {[%clk 0:02:59.7]} 2. Nf3 {[%clk 0:03:00.1]}
2... g6 {[%clk 0:02:58.4]} 3. c3 {[%clk 0:02:59.5]} 3... Nf6 {[%clk 0:02:57.4]}
4. e5 {[%clk 0:02:58.9]} 4... Nd5 {[%clk 0:02:57.1]} 5. d4 {[%clk 0:02:58.3]}
5... cxd4 {[%clk 0:02:56.6]} 6. cxd4 {[%clk 0:02:59.2]} 6... Bg7 {[%clk
0:02:52.4]} 7. Nc3 {[%clk 0:02:56.7]} 7... Nxc3 {[%clk 0:02:51.4]} 8. bxc3
{[%clk 0:02:57.6]} 8... d6 {[%clk 0:02:50.4]} 9. exd6 {[%clk 0:02:52.2]} 9...
Qxd6 {[%clk 0:02:49]} 10. Be2 {[%clk 0:02:46.6]} 10... O-O {[%clk 0:02:47.4]}
11. O-O {[%clk 0:02:45.4]} 11... Bf5 {[%clk 0:02:46.6]} 12. a4 {[%clk
0:02:44.3]} 12... Nc6 {[%clk 0:02:46.2]} 13. Ba3 {[%clk 0:02:30.3]} 13... Qd7
{[%clk 0:02:43.2]} 14. h3 {[%clk 0:02:27.3]} 14... Rac8 {[%clk 0:02:41.7]} 15.
Re1 {[%clk 0:02:24.8]} 15... Be6 {[%clk 0:02:38.7]} 16. Ng5 {[%clk 0:02:10.1]}
16... Bf5 {[%clk 0:02:27.4]} 17. Bb5 {[%clk 0:02:06.7]} 17... Be6 {[%clk
0:02:12.1]} 18. Nxe6 {[%clk 0:02:04]} 18... fxe6 {[%clk 0:02:11.4]} 19. Bc4
{[%clk 0:01:53.2]} 19... Nxd4 {[%clk 0:02:05]} 20. Bxe6+ {[%clk 0:01:52]} 20...
Nxe6 {[%clk 0:02:00.2]} 21. Qxd7 {[%clk 0:01:51.4]} 21... Nf4 {[%clk 0:01:53.8]}
22. Rxe7 {[%clk 0:01:48.4]} 22... Bf6 {[%clk 0:01:40.8]} 23. Rxh7 {[%clk
0:01:44.5]} 23... Rcd8 {[%clk 0:01:30.6]} 24. Qxb7 {[%clk 0:01:33.2]} 24... Rb8
{[%clk 0:01:30.7]} 25. Bxf8 {[%clk 0:01:28.9]} 25... Rxb7 {[%clk 0:01:28.2]} 26.
Rxb7 {[%clk 0:01:29.8]} 26... Kxf8 {[%clk 0:01:26.5]} 27. Rxa7 {[%clk 0:01:28]}
27... Bxc3 {[%clk 0:01:25.8]} 28. Rb1 {[%clk 0:01:26]} 28... Be5 {[%clk
0:01:23.1]} 29. Rbb7 {[%clk 0:01:22]} 1-0

[Event "*** Titled Tuesday Blitz"]
[Site "Chess.com"]
[Date "2020.05.19"]
[Round "3"]
[White "Chess_Boxer123"]
[Black "boasovietica"]
[Result "0-1"]
[WhiteElo "2559"]
[BlackElo "2393"]
[TimeControl "180+1"]
[EndTime "12:26:36 PDT"]
[Termination "boasovietica won by checkmate"]

1. d4 {[%clk 0:03:00.9]} 1... Nf6 {[%clk 0:02:55.4]} 2. c4 {[%clk 0:03:00.6]}
2... g6 {[%clk 0:02:55.6]} 3. f3 {[%clk 0:02:59.7]} 3... Bg7 {[%clk 0:02:54.7]}
4. e4 {[%clk 0:02:59.8]} 4... O-O {[%clk 0:02:55.2]} 5. Nc3 {[%clk 0:03:00.2]}
5... d6 {[%clk 0:02:55.5]} 6. Be3 {[%clk 0:03:00.7]} 6... e5 {[%clk 0:02:55.4]}
7. Nge2 {[%clk 0:02:58.6]} 7... c6 {[%clk 0:02:55.5]} 8. Qd2 {[%clk 0:02:57.8]}
8... Nbd7 {[%clk 0:02:55.6]} 9. d5 {[%clk 0:02:54]} 9... cxd5 {[%clk 0:02:52.5]}
10. cxd5 {[%clk 0:02:53.9]} 10... a6 {[%clk 0:02:50.7]} 11. O-O-O {[%clk
0:02:49.4]} 11... b5 {[%clk 0:02:50.3]} 12. Kb1 {[%clk 0:02:49.9]} 12... Nb6
{[%clk 0:02:47]} 13. b3 {[%clk 0:02:49.2]} 13... b4 {[%clk 0:02:42.3]} 14. Bxb6
{[%clk 0:02:49.4]} 14... Qxb6 {[%clk 0:02:41.9]} 15. Na4 {[%clk 0:02:49.7]}
15... Qa5 {[%clk 0:02:41.8]} 16. g4 {[%clk 0:02:44.5]} 16... Bd7 {[%clk
0:02:38.1]} 17. Nb2 {[%clk 0:02:45]} 17... Bb5 {[%clk 0:02:36.7]} 18. Ng3 {[%clk
0:02:43.6]} 18... Rfc8 {[%clk 0:02:31.1]} 19. h4 {[%clk 0:02:42.7]} 19... Rc3
{[%clk 0:02:28.4]} 20. Bc4 {[%clk 0:02:27.4]} 20... Rxf3 {[%clk 0:02:22.8]} 21.
Ne2 {[%clk 0:02:26.1]} 21... h5 {[%clk 0:02:11.5]} 22. gxh5 {[%clk 0:02:24.2]}
22... Nxh5 {[%clk 0:02:11]} 23. Rdf1 {[%clk 0:02:19.1]} 23... Rxf1+ {[%clk
0:02:05.9]} 24. Rxf1 {[%clk 0:02:20]} 24... Qb6 {[%clk 0:01:43.6]} 25. Qxb4
{[%clk 0:02:11]} 25... Qe3 {[%clk 0:01:41.9]} 26. Bxb5 {[%clk 0:02:07.9]} 26...
axb5 {[%clk 0:01:41.2]} 27. Nc3 {[%clk 0:01:50.6]} 27... Rc8 {[%clk 0:01:27.6]}
28. Nxb5 {[%clk 0:01:46.4]} 28... Qe2 {[%clk 0:01:14.3]} 29. Rc1 {[%clk
0:01:17.4]} 29... Rxc1+ {[%clk 0:01:11.2]} 30. Kxc1 {[%clk 0:01:18.3]} 30...
Bh6+ {[%clk 0:01:10.9]} 31. Kb1 {[%clk 0:01:18.7]} 31... Qf1+ {[%clk 0:01:04.6]}
32. Kc2 {[%clk 0:01:18.3]} 32... Qc1+ {[%clk 0:01:04.1]} 33. Kd3 {[%clk
0:01:16.5]} 33... Nf4# {[%clk 0:01:03.5]} 0-1

[Event "*** Titled Tuesday Blitz"]
[Site "Chess.com"]
[Date "2020.05.19"]
[Round "3"]
[White "A-Fier"]
[Black "RubensCezila"]
[Result "1-0"]
[WhiteElo "2736"]
[BlackElo "2441"]
[TimeControl "180+1"]
[EndTime "12:26:38 PDT"]
[Termination "A-Fier won by resignation"]

1. e4 {[%clk 0:03:00.9]} 1... g6 {[%clk 0:02:57.7]} 2. h4 {[%clk 0:02:58.6]}
2... h5 {[%clk 0:02:56.7]} 3. Nf3 {[%clk 0:02:57.8]} 3... Bg7 {[%clk 0:02:56.6]}
4. d4 {[%clk 0:02:57]} 4... d6 {[%clk 0:02:56.7]} 5. Ng5 {[%clk 0:02:57]} 5...
Nc6 {[%clk 0:02:53.2]} 6. Be3 {[%clk 0:02:55.4]} 6... Nf6 {[%clk 0:02:47.1]} 7.
f3 {[%clk 0:02:53.9]} 7... e5 {[%clk 0:02:38.6]} 8. d5 {[%clk 0:02:52]} 8... Ne7
{[%clk 0:02:37.9]} 9. Nc3 {[%clk 0:02:48.8]} 9... Nh7 {[%clk 0:02:36.7]} 10.
Nxh7 {[%clk 0:02:47.1]} 10... Rxh7 {[%clk 0:02:36.8]} 11. Qd2 {[%clk 0:02:48]}
11... f5 {[%clk 0:02:26]} 12. Bg5 {[%clk 0:02:46.5]} 12... a6 {[%clk 0:02:14.7]}
13. O-O-O {[%clk 0:02:45.7]} 13... Rh8 {[%clk 0:02:05]} 14. exf5 {[%clk
0:02:38.9]} 14... Bxf5 {[%clk 0:02:03.6]} 15. Bd3 {[%clk 0:02:31.7]} 15... Qd7
{[%clk 0:02:02.2]} 16. g4 {[%clk 0:02:22.1]} 16... hxg4 {[%clk 0:01:53.1]} 17.
fxg4 {[%clk 0:02:23]} 17... Bxg4 {[%clk 0:01:48.2]} 18. Rdf1 {[%clk 0:02:21.3]}
18... Nf5 {[%clk 0:01:35]} 19. Rhg1 {[%clk 0:02:11.7]} 19... Bh5 {[%clk
0:01:24.2]} 20. Ne4 {[%clk 0:02:08.8]} 20... Rf8 {[%clk 0:01:21.7]} 21. Kb1
{[%clk 0:02:07.6]} 21... Nd4 {[%clk 0:01:13.5]} 22. Ng3 {[%clk 0:01:51.6]} 22...
Nf3 {[%clk 0:01:02.5]} 23. Rxf3 {[%clk 0:01:51.4]} 23... Rxf3 {[%clk 0:01:01.8]}
24. Nxh5 {[%clk 0:01:51.2]} 24... gxh5 {[%clk 0:01:02.7]} 25. Bg6+ {[%clk
0:01:50.7]} 25... Kf8 {[%clk 0:01:02.6]} 26. Bxh5 {[%clk 0:01:46.5]} 26... e4
{[%clk 0:00:54.2]} 27. Bxf3 {[%clk 0:01:31.7]} 27... exf3 {[%clk 0:00:48.6]} 28.
Bh6 {[%clk 0:01:32]} 1-0

[Event "*** Titled Tuesday Blitz"]
[Site "Chess.com"]
[Date "2020.05.19"]
[Round "3"]
[White "profofchess"]
[Black "GigaQuparadze"]
[Result "0-1"]
[WhiteElo "2458"]
[BlackElo "2855"]
[TimeControl "180+1"]
[EndTime "12:26:39 PDT"]
[Termination "GigaQuparadze won by resignation"]

1. e4 {[%clk 0:03:00.9]} 1... c5 {[%clk 0:02:59.9]} 2. Nf3 {[%clk 0:03:00.6]}
2... a6 {[%clk 0:03:00.3]} 3. c3 {[%clk 0:02:57]} 3... d6 {[%clk 0:03:00.2]} 4.
d4 {[%clk 0:02:54.6]} 4... Nd7 {[%clk 0:02:59.8]} 5. Bd3 {[%clk 0:02:53.8]} 5...
g6 {[%clk 0:02:59.2]} 6. O-O {[%clk 0:02:50.9]} 6... Bg7 {[%clk 0:02:59.3]} 7.
Re1 {[%clk 0:02:49.5]} 7... cxd4 {[%clk 0:02:58.4]} 8. cxd4 {[%clk 0:02:49.4]}
8... Nh6 {[%clk 0:02:58.7]} 9. Nc3 {[%clk 0:02:40.2]} 9... O-O {[%clk
0:02:58.4]} 10. a4 {[%clk 0:02:36.3]} 10... Ng4 {[%clk 0:02:57.4]} 11. a5 {[%clk
0:02:16.5]} 11... e5 {[%clk 0:02:52.1]} 12. dxe5 {[%clk 0:01:55.4]} 12... Ndxe5
{[%clk 0:02:47.2]} 13. Nxe5 {[%clk 0:01:48.6]} 13... Bxe5 {[%clk 0:02:48.1]} 14.
h3 {[%clk 0:01:24.6]} 14... Qh4 {[%clk 0:02:31.8]} 15. Qe2 {[%clk 0:01:06.8]}
15... Nxf2 {[%clk 0:02:17.3]} 16. Qxf2 {[%clk 0:00:59.2]} 16... Bg3 {[%clk
0:02:11.5]} 17. Qf3 {[%clk 0:00:38.3]} 17... Bxe1 {[%clk 0:02:08.5]} 18. Nd5
{[%clk 0:00:38.6]} 18... Bg3 {[%clk 0:02:05.7]} 19. Nf6+ {[%clk 0:00:36.4]}
19... Kg7 {[%clk 0:02:05.2]} 20. Nd5 {[%clk 0:00:24.5]} 20... Be5 {[%clk
0:02:01.4]} 21. Be3 {[%clk 0:00:23.3]} 21... Be6 {[%clk 0:02:01]} 22. Rf1 {[%clk
0:00:17.6]} 22... Bxd5 {[%clk 0:02:00.2]} 23. exd5 {[%clk 0:00:18.5]} 23... f5
{[%clk 0:02:00.5]} 24. Rc1 {[%clk 0:00:13.8]} 24... Rf7 {[%clk 0:02:00]} 25. Qd1
{[%clk 0:00:13.6]} 25... Qg3 {[%clk 0:01:59.5]} 26. Bf2 {[%clk 0:00:13.2]} 26...
Qh2+ {[%clk 0:01:59.7]} 27. Kf1 {[%clk 0:00:13.8]} 27... Qh1+ {[%clk 0:01:59.6]}
28. Ke2 {[%clk 0:00:12.7]} 28... Qxg2 {[%clk 0:01:59.4]} 29. Qh1 {[%clk
0:00:12.4]} 29... Qxh1 {[%clk 0:01:59.2]} 0-1

[Event "*** Titled Tuesday Blitz"]
[Site "Chess.com"]
[Date "2020.05.19"]
[Round "3"]
[White "TheFireChess"]
[Black "SidArun"]
[Result "1-0"]
[WhiteElo "2438"]
[BlackElo "2220"]
[TimeControl "180+1"]
[EndTime "12:26:39 PDT"]
[Termination "TheFireChess won by resignation"]

1. e4 {[%clk 0:02:59.4]} 1... c6 {[%clk 0:02:59.9]} 2. Nc3 {[%clk 0:02:57.2]}
2... d5 {[%clk 0:03:00]} 3. d3 {[%clk 0:02:57]} 3... dxe4 {[%clk 0:02:56]} 4.
dxe4 {[%clk 0:02:57.9]} 4... Qxd1+ {[%clk 0:02:54.5]} 5. Nxd1 {[%clk 0:02:58.8]}
5... Nf6 {[%clk 0:02:53.6]} 6. f3 {[%clk 0:02:58.8]} 6... e5 {[%clk 0:02:53.7]}
7. Bc4 {[%clk 0:02:58.3]} 7... Bc5 {[%clk 0:02:51.7]} 8. Be3 {[%clk 0:02:58]}
8... Bxe3 {[%clk 0:02:50.1]} 9. Nxe3 {[%clk 0:02:58.9]} 9... b5 {[%clk
0:02:50.3]} 10. Bb3 {[%clk 0:02:57.9]} 10... Nbd7 {[%clk 0:02:50.3]} 11. Ne2
{[%clk 0:02:56.9]} 11... Nc5 {[%clk 0:02:50]} 12. Nc1 {[%clk 0:02:57.1]} 12...
Be6 {[%clk 0:02:47.7]} 13. Bxe6 {[%clk 0:02:53.3]} 13... Nxe6 {[%clk 0:02:46.9]}
14. Nd3 {[%clk 0:02:53.8]} 14... Nd7 {[%clk 0:02:45.3]} 15. c3 {[%clk
0:02:51.6]} 15... g6 {[%clk 0:02:45]} 16. O-O-O {[%clk 0:02:46.7]} 16... Ke7
{[%clk 0:02:44.7]} 17. Rd2 {[%clk 0:02:46.6]} 17... Rhd8 {[%clk 0:02:43.8]} 18.
Rhd1 {[%clk 0:02:46.4]} 18... f6 {[%clk 0:02:43.1]} 19. Kc2 {[%clk 0:02:30.2]}
19... Nb6 {[%clk 0:02:42.6]} 20. b3 {[%clk 0:02:19.7]} 20... c5 {[%clk
0:02:37.9]} 21. Ne1 {[%clk 0:01:45.8]} 21... Rxd2+ {[%clk 0:02:26.3]} 22. Rxd2
{[%clk 0:01:46.1]} 22... Rd8 {[%clk 0:02:26.8]} 23. Nd5+ {[%clk 0:01:32.9]}
23... Nxd5 {[%clk 0:02:25.5]} 24. exd5 {[%clk 0:01:33.5]} 24... Nc7 {[%clk
0:02:12.2]} 25. c4 {[%clk 0:01:30.5]} 25... Kd6 {[%clk 0:02:10]} 26. Nd3 {[%clk
0:01:23.7]} 26... bxc4 {[%clk 0:02:08.8]} 27. bxc4 {[%clk 0:01:23.5]} 27... Rb8
{[%clk 0:02:08.9]} 28. a3 {[%clk 0:01:19.5]} 28... Na8 {[%clk 0:02:01.2]} 29.
Nf2 {[%clk 0:01:08.8]} 29... Nb6 {[%clk 0:02:01]} 30. Ne4+ {[%clk 0:01:06.6]}
30... Ke7 {[%clk 0:01:59.3]} 31. d6+ {[%clk 0:01:06.4]} 31... Kd8 {[%clk
0:01:51.8]} 32. Nxc5 {[%clk 0:00:53.3]} 32... Nxc4 {[%clk 0:01:50.3]} 33. Rd3
{[%clk 0:00:48.2]} 33... Nxa3+ {[%clk 0:01:46.5]} 34. Rxa3 {[%clk 0:00:47.1]}
34... Rc8 {[%clk 0:01:46.6]} 35. Ra5 {[%clk 0:00:46.7]} 1-0

[Event "*** Titled Tuesday Blitz"]
[Site "Chess.com"]
[Date "2020.05.19"]
[Round "3"]
[White "InitiatingASC"]
[Black "barbara25"]
[Result "1-0"]
[WhiteElo "2354"]
[BlackElo "2188"]
[TimeControl "180+1"]
[EndTime "12:26:41 PDT"]
[Termination "InitiatingASC won by resignation"]

1. Nf3 {[%clk 0:02:55.2]} 1... Nf6 {[%clk 0:02:59]} 2. b3 {[%clk 0:02:55.2]}
2... e6 {[%clk 0:02:59.3]} 3. Bb2 {[%clk 0:02:55.7]} 3... d5 {[%clk 0:02:59.9]}
4. e3 {[%clk 0:02:53.7]} 4... c5 {[%clk 0:03:00.5]} 5. c4 {[%clk 0:02:54.3]}
5... Be7 {[%clk 0:03:00]} 6. cxd5 {[%clk 0:02:54.5]} 6... exd5 {[%clk
0:02:59.4]} 7. Bb5+ {[%clk 0:02:55.1]} 7... Bd7 {[%clk 0:02:59]} 8. Be2 {[%clk
0:02:54.2]} 8... O-O {[%clk 0:02:58.7]} 9. O-O {[%clk 0:02:54.3]} 9... Nc6
{[%clk 0:02:56.7]} 10. d3 {[%clk 0:02:54.8]} 10... Rc8 {[%clk 0:02:56.6]} 11.
Nbd2 {[%clk 0:02:55.3]} 11... Bd6 {[%clk 0:02:56.3]} 12. a3 {[%clk 0:02:50.8]}
12... Re8 {[%clk 0:02:56.3]} 13. Rc1 {[%clk 0:02:51]} 13... b6 {[%clk
0:02:56.2]} 14. Qc2 {[%clk 0:02:51.4]} 14... Bb8 {[%clk 0:02:54.4]} 15. Qb1
{[%clk 0:02:51]} 15... Qe7 {[%clk 0:02:53.8]} 16. Rfe1 {[%clk 0:02:50.2]} 16...
Ne5 {[%clk 0:02:50.7]} 17. Bd1 {[%clk 0:02:47.5]} 17... Nxf3+ {[%clk 0:02:49.7]}
18. Nxf3 {[%clk 0:02:47.3]} 18... Qd6 {[%clk 0:02:48.1]} 19. Qa1 {[%clk
0:02:28.3]} 19... Bg4 {[%clk 0:02:45.2]} 20. g3 {[%clk 0:02:20.2]} 20... Re6
{[%clk 0:02:24.9]} 21. Ng5 {[%clk 0:02:15.8]} 21... Bxd1 {[%clk 0:02:18.9]} 22.
Nxe6 {[%clk 0:02:12.8]} 22... Bg4 {[%clk 0:02:09.6]} 23. Bxf6 {[%clk 0:02:03.7]}
23... gxf6 {[%clk 0:02:07.2]} 24. Nf4 {[%clk 0:02:03.9]} 24... Bf3 {[%clk
0:02:00.3]} 25. b4 {[%clk 0:02:00.1]} 25... h5 {[%clk 0:01:43.5]} 26. bxc5
{[%clk 0:01:56.9]} 26... bxc5 {[%clk 0:01:43]} 27. h4 {[%clk 0:01:49.5]} 27...
Kh7 {[%clk 0:01:40.6]} 28. Kh2 {[%clk 0:01:49]} 28... Rg8 {[%clk 0:01:40.1]} 29.
Qc3 {[%clk 0:01:46.8]} 29... d4 {[%clk 0:01:04.8]} 30. Qxc5 {[%clk 0:01:38.7]}
30... Qf8 {[%clk 0:00:55.7]} 31. Qxd4 {[%clk 0:01:33]} 31... Qh6 {[%clk
0:00:50.8]} 32. Rb1 {[%clk 0:01:24.6]} 1-0